fUST/lending_fUST_20241126
["ID","MTS","AMOUNT","RATE_DAILY","PERIOD"]
[343315567,1732574750206,-500.0,0.00022062,2]
[343315568,1732574750227,-500.0,0.00022062,2]
[343315569,1732574750249,-500.0,0.00022062,2]
[343315570,1732574750274,-500.0,0.00022062,2]
[343315571,1732574750296,-196.45189082,0.00022062,2]
[343315572,1732574750317,-500.0,0.00022334,2]
[343315573,1732574750339,-500.0,0.00022334,2]
[343315574,1732574750360,-500.0,0.00022334,2]
[343315575,1732574750381,-500.0,0.00022334,2]
[343315576,1732574750401,-500.0,0.00022334,2]
[343315577,1732574750422,-779.7,0.00022334,2]
[343315578,1732574750443,-500.0,0.00022334,2]
[343315579,1732574750464,-500.0,0.00022334,2]
[343315580,1732574750485,-500.0,0.00022334,2]
[343315581,1732574750507,-500.0,0.00022334,2]
[343315582,1732574750531,-546.6,0.00022335,2]
[343315583,1732574750553,-500.0,0.00022335,2]
[343315584,1732574750574,-500.0,0.00022335,2]
[343315585,1732574750595,-500.0,0.00022335,2]
[343315586,1732574750616,-500.0,0.00022335,2]
[343315587,1732574750637,-500.0,0.00022335,2]
[343315588,1732574750658,-500.0,0.00022335,2]
[343315589,1732574750678,-500.0,0.00022335,2]
[343315590,1732574750698,-500.0,0.00022335,2]
[343315591,1732574750718,-500.0,0.00022336,2]
[343315592,1732574750739,-500.0,0.00022336,2]
[343315593,1732574750759,-500.0,0.00022336,2]
[343315594,1732574750783,-500.0,0.00022336,2]
[343315595,1732574750803,-272.5,0.00022336,2]
[343315596,1732574750824,-500.0,0.00022336,2]
[343315597,1732574750845,-424.10080009,0.00022336,2]
[343315598,1732574750866,-500.0,0.00022336,2]
[343315599,1732574750888,-299.11722099,0.00022336,2]
[343315600,1732574750909,-500.0,0.00022336,2]
[343315601,1732574750930,-500.0,0.00022336,2]
[343315602,1732574750951,-234.47056282,0.00022336,2]
[343315603,1732574750972,-500.0,0.00022336,2]
[343315604,1732574750993,-500.0,0.00022336,2]
[343315605,1732574751017,-500.0,0.00022336,2]
[343315606,1732574751040,-500.0,0.00022336,2]
[343315607,1732574751062,-780.316008,0.00022401,2]
[343315608,1732574751084,-500.0,0.00022608,2]
[343315609,1732574751105,-500.0,0.00022608,2]
[343315610,1732574751131,-779.7,0.00022608,2]
[343315611,1732574751153,-500.0,0.00022608,2]
[343315612,1732574751178,-500.0,0.00022608,2]
[343315613,1732574751201,-500.0,0.00022609,2]
[343315614,1732574751226,-500.0,0.00022609,2]
[343315615,1732574751246,-500.0,0.0002261,2]
[343315616,1732574751345,-186.38,0.0002261,2]
[343315617,1732574751366,-457.23869624,0.0002261,2]
[343315618,1732574751387,-500.0,0.0002261,2]
[343315619,1732574751407,-190.62929718,0.0002261,2]
[343315620,1732574751428,-500.0,0.0002261,2]
[343315621,1732574751451,-500.0,0.0002261,2]
[343315622,1732574751470,-500.0,0.0002262,2]
[343315623,1732574751490,-500.0,0.0002262,2]
[343315624,1732574751509,-500.33563402,0.0002262,2]
[343315625,1732574751531,-644.87415073,0.0002262,2]
[343315626,1732574751551,-160.03997109,0.00022686,2]
[343315627,1732574751571,-500.0,0.00022686,2]
[343315628,1732574751591,-500.0,0.00022686,2]
[343315629,1732574751611,-500.0,0.00022686,2]
[343315630,1732574751633,-184.81,0.00022882,2]
[343315631,1732574751655,-779.7,0.00022882,2]
[343315632,1732574751677,-500.0,0.00022882,2]
[343315633,1732574751698,-490.02462794,0.00022883,2]
[343315634,1732574751720,-500.0,0.00022884,2]
[343315635,1732574751740,-500.0,0.00022975,2]
[343315636,1732574751760,-500.0,0.00022975,2]
[343315637,1732574751784,-500.0,0.00022975,2]
[343315638,1732574751805,-3199.1392586,0.00023039,2]
[343315639,1732574751826,-780.316008,0.00023085,2]
[343315640,1732574751846,-160.04042246,0.00023104,2]
[343315641,1732574751866,-360.10880151,0.00023104,2]
[343315642,1732574751887,-604.73,0.00023132,3]
[343315643,1732574751908,-24374.9713752,0.00023142,2]
[343315644,1732574751930,-779.7,0.00023156,2]
[343315645,1732574751952,-500.0,0.00023156,2]
[343315646,1732574751974,-500.0,0.00023158,2]
[343315647,1732574751995,-500.0,0.00023249,2]
[343315648,1732574752019,-323.75,0.00023249,2]
[343315649,1732574752040,-500.0,0.00023428,2]
[343315650,1732574752061,-500.0,0.00023428,2]
[343315651,1732574752082,-409.97135828,0.00023428,2]
[343315652,1732574752104,-500.0,0.00023428,2]
[343315653,1732574752130,-500.0,0.00023428,2]
[343315654,1732574752153,-500.0,0.00023428,2]
[343315655,1732574752179,-500.0,0.00023428,2]
[343315656,1732574752203,-500.0,0.00023428,2]
[343315657,1732574752224,-500.0,0.00023428,2]
[343315658,1732574752245,-500.0,0.00023428,2]
[343315659,1732574752270,-500.0,0.00023428,2]
[343315660,1732574752292,-500.0,0.00023428,2]
[343315661,1732574752313,-500.0,0.00023428,2]
[343315662,1732574752334,-500.0,0.00023428,2]
[343315663,1732574752357,-110.07701234,0.00023428,2]
[343315664,1732574752464,-389.92298766,0.00023428,2]
[343315665,1732574752485,-500.0,0.00023428,2]
[343315666,1732574752507,-500.0,0.00023428,2]
[343315667,1732574752530,-500.0,0.00023428,2]
[343315668,1732574752553,-500.0,0.00023428,2]
[343315669,1732574752574,-635.92618681,0.00023428,2]
[343315670,1732574752595,-500.0,0.00023428,2]
[343315671,1732574752616,-500.0,0.00023428,2]
[343315672,1732574752638,-500.0,0.00023428,2]
[343315673,1732574752659,-500.0,0.00023428,2]
[343315674,1732574752679,-500.0,0.00023428,2]
[343315675,1732574752701,-500.0,0.00023428,2]
[343315676,1732574752722,-500.0,0.00023428,2]
[343315677,1732574752743,-500.0,0.00023428,2]
[343315678,1732574752766,-227.88537415,0.00023428,2]
[343315679,1732574752787,-500.0,0.00023428,2]
[343315680,1732574752809,-500.0,0.00023428,2]
[343315681,1732574752830,-500.0,0.00023428,2]
[343315682,1732574752851,-500.0,0.00023428,2]
[343315683,1732574752872,-500.0,0.00023428,2]
[343315684,1732574752894,-360.02860975,0.00023428,2]
[343315685,1732574752915,-500.0,0.00023428,2]
[343315686,1732574752937,-500.0,0.00023428,2]
[343315687,1732574752958,-500.0,0.00023428,2]
[343315688,1732574752989,-540.20067369,0.00023428,2]
[343315689,1732574753012,-500.0,0.00023428,2]
[343315690,1732574753036,-500.0,0.00023428,2]
[343315691,1732574753057,-500.0,0.00023428,2]
[343315692,1732574753078,-500.0,0.00023428,2]
[343315693,1732574753101,-500.0,0.00023428,2]
[343315694,1732574753126,-500.0,0.00023428,2]
[343315695,1732574753147,-500.0,0.00023428,2]
[343315696,1732574753169,-500.0,0.00023428,2]
[343315697,1732574753190,-500.0,0.00023428,2]
[343315698,1732574753213,-500.0,0.00023428,2]
[343315699,1732574753235,-473.92504316,0.00023428,2]
[343315700,1732574753257,-500.0,0.00023428,2]
[343315701,1732574753280,-500.0,0.00023428,2]
[343315702,1732574753303,-500.0,0.00023428,2]
[343315703,1732574753324,-500.0,0.00023428,2]
[343315704,1732574753347,-500.0,0.00023428,2]
[343315705,1732574753368,-500.0,0.00023428,2]
[343315706,1732574753389,-500.0,0.00023428,2]
[343315707,1732574753410,-500.0,0.00023428,2]
[343315708,1732574753432,-500.0,0.00023428,2]
[343315709,1732574753454,-500.0,0.00023428,2]
[343315710,1732574753476,-500.0,0.00023428,2]
[343315711,1732574753498,-779.7,0.0002343,2]
[343315712,1732574753520,-500.0,0.0002343,2]
[343315713,1732574753542,-500.0,0.00023432,2]
[343315714,1732574753563,-500.0,0.00023501,2]
[343315715,1732574753585,-779.7,0.00023704,2]
[343315716,1732574753684,-500.0,0.00023704,2]
[343315717,1732574753706,-500.0,0.00023706,2]
[343315718,1732574753727,-420.0,0.00023964,2]
[343315719,1732574753750,-779.7,0.00023978,2]
[343315720,1732574753773,-500.0,0.00023978,2]
[343315721,1732574753795,-400.86029836,0.0002398,2]
[343315722,1732574753817,-169.956,0.00024113,6]
[343315723,1732574753839,-3199.1392586,0.00024115,2]
[343315724,1732574753862,-779.7,0.00024252,2]
[343315725,1732574753884,-500.0,0.00024252,2]
[343315726,1732574753905,-420.0,0.00024259,2]
[343315727,1732574753930,-779.7,0.00024526,2]
[343315728,1732574753952,-500.0,0.00024526,2]
[343315729,1732574753972,-151.0,0.000247,7]
[343315730,1732574753994,-779.7,0.000248,2]
[343315731,1732574754019,-500.0,0.000248,2]
[343315732,1732574754040,-279.392979,0.00025001,2]
[343315733,1732574754062,-779.7,0.00025074,2]
[343315734,1732574754082,-500.0,0.00025074,2]
[343315735,1732574754102,-3199.1392586,0.00025192,2]
[343315736,1732574754127,-779.7,0.00025348,2]
[343315737,1732574754147,-437.39558548,0.00025348,2]
[343315738,1732574754170,-779.7,0.00025622,2]
[343315739,1732574754192,-779.7,0.00025896,2]
[343315740,1732574754216,-587.0,0.00026039,2]
[343315741,1732574754238,-779.7,0.0002617,2]
[343315742,1732574754258,-3199.1392586,0.00026269,2]
[343315743,1732574754284,-779.7,0.00026444,2]
[343315744,1732574754304,-531.0,0.00026615,2]
[343315745,1732574754323,-1103.0,0.00026615,2]
[343315746,1732574754342,-2379.0,0.00026615,2]
[343315747,1732574754361,-150.0,0.00026615,2]
[343315748,1732574754381,-151.0,0.00026618,7]
[343315749,1732574754401,-587.0,0.00026685,2]
[343315750,1732574754422,-779.7,0.00026718,2]
[343315751,1732574754443,-779.7,0.00026992,2]
[343315752,1732574754464,-779.7,0.00027266,2]
[343315753,1732574754484,-3199.1392586,0.00027346,2]
[343315754,1732574754503,-500.0,0.00027397,2]
[343315755,1732574754527,-779.7,0.0002754,2]
[343315756,1732574754548,-151.0,0.00027581,7]
[343315757,1732574754571,-779.7,0.00027814,2]
[343315758,1732574754592,-151.0,0.00028,7]
[343315759,1732574754613,-151.0,0.00028,7]
[343315760,1732574754635,-779.7,0.00028088,2]
[343315761,1732574754654,-500.0,0.00028194,5]
[343315762,1732574754675,-823.0,0.00028295,2]
[343315763,1732574754697,-317.48,0.000283,31]
[343315764,1732574754718,-317.48,0.000283,31]
[343315765,1732574754740,-317.48,0.000283,31]
[343315766,1732574754762,-317.48,0.000283,31]
[343315767,1732574754789,-317.48,0.000283,31]
[343315768,1732574754811,-317.48,0.000283,31]
[343315769,1732574754833,-317.48,0.000283,31]
[343315770,1732574754855,-317.48,0.000283,31]
[343315771,1732574754877,-317.48,0.000283,31]
[343315772,1732574754901,-317.48,0.000283,31]
[343315773,1732574754923,-317.48,0.000283,31]
[343315774,1732574754946,-317.48,0.000283,31]
[343315775,1732574754969,-779.86727014,0.00028362,2]
[343315776,1732574754990,-260.05408077,0.00028372,5]
[343315777,1732574755011,-3199.1392586,0.00028422,2]
[343315778,1732574755035,-157.59038912,0.00028616,7]
[343315779,1732574755056,-600.0,0.00028626,2]
[343315780,1732574755079,-317.48,0.000287,31]
[343315781,1732574755101,-317.48,0.000287,31]
[343315782,1732574755126,-317.48,0.000287,31]
[343315783,1732574755148,-317.48,0.000287,31]
[343315784,1732574755171,-317.48,0.000287,31]
[343315785,1732574755195,-317.48,0.000287,31]
[343315786,1732574755217,-317.48,0.000287,31]
[343315787,1732574755238,-317.48,0.000287,31]
[343315788,1732574755260,-317.48,0.000287,31]
[343315789,1732574755288,-317.48,0.000287,31]
[343315790,1732574755311,-317.48,0.000287,31]
[343315791,1732574755335,-317.48,0.000287,31]
[343315792,1732574755358,-317.48,0.000287,31]
[343315793,1732574755380,-317.48,0.000287,31]
[343315794,1732574755402,-317.48,0.000287,31]
[343315795,1732574755423,-317.48,0.000287,31]
[343315796,1732574755445,-317.48,0.000287,31]
[343315797,1732574755470,-317.48,0.000287,31]
[343315798,1732574755494,-317.48,0.000287,31]
[343315799,1732574755517,-317.48,0.000287,31]
[343315800,1732574755539,-317.48,0.000287,31]
[343315801,1732574755561,-317.48,0.000287,31]
[343315802,1732574755583,-317.48,0.000287,31]
[343315803,1732574755605,-317.48,0.000287,31]
[343315804,1732574755627,-500.0,0.00028763,5]
[343315805,1732574755651,-500.0,0.00028767,4]
[343315806,1732574755674,-600.0,0.00028924,2]
[343315807,1732574755700,-317.48,0.00029,31]
[343315808,1732574755724,-317.48,0.00029,31]
[343315809,1732574755749,-317.48,0.00029,31]
[343315810,1732574755773,-317.48,0.00029,31]
[343315811,1732574755797,-317.48,0.00029,31]
[343315812,1732574755821,-317.48,0.00029,31]
[343315813,1732574755844,-317.48,0.00029,31]
[343315814,1732574755868,-317.48,0.00029,31]
[343315815,1732574755891,-317.48,0.00029,31]
[343315816,1732574755914,-317.48,0.00029,31]
[343315817,1732574755937,-317.48,0.00029,31]
[343315818,1732574756033,-317.48,0.00029,31]
[343315819,1732574756058,-317.48,0.00029,31]
[343315820,1732574756081,-317.48,0.00029,31]
[343315821,1732574756104,-317.48,0.00029,31]
[343315822,1732574756130,-317.48,0.00029,31]
[343315823,1732574756152,-317.48,0.00029,31]
[343315824,1732574756176,-317.48,0.00029,31]
[343315825,1732574756199,-317.48,0.00029,31]
[343315826,1732574756224,-317.48,0.00029,31]
[343315827,1732574756247,-317.48,0.00029,31]
[343315828,1732574756273,-317.48,0.00029,31]
[343315829,1732574756298,-317.48,0.00029,31]
[343315830,1732574756321,-317.48,0.00029,31]
[343315831,1732574756341,-151.0,0.000291,12]
[343315832,1732574756361,-600.0,0.00029223,2]
[343315833,1732574756384,-317.48,0.000293,31]
[343315834,1732574756408,-317.48,0.000293,31]
[343315835,1732574756432,-317.48,0.000293,31]
[343315836,1732574756455,-317.48,0.000293,31]
[343315837,1732574756476,-317.48,0.000293,31]
[343315838,1732574756499,-317.48,0.000293,31]
[343315839,1732574756524,-317.48,0.000293,31]
[343315840,1732574756546,-317.48,0.000293,31]
[343315841,1732574756569,-317.48,0.000293,31]
[343315842,1732574756591,-317.48,0.000293,31]
[343315843,1732574756613,-317.48,0.000293,31]
[343315844,1732574756635,-317.48,0.000293,31]
[343315845,1732574756658,-317.48,0.000293,31]
[343315846,1732574756681,-317.48,0.000293,31]
[343315847,1732574756704,-317.48,0.000293,31]
[343315848,1732574756727,-317.48,0.000293,31]
[343315849,1732574756748,-317.48,0.000293,31]
[343315850,1732574756773,-317.48,0.000293,31]
[343315851,1732574756796,-317.48,0.000293,31]
[343315852,1732574756818,-317.48,0.000293,31]
[343315853,1732574756841,-317.48,0.000293,31]
[343315854,1732574756864,-317.48,0.000293,31]
[343315855,1732574756887,-317.48,0.000293,31]
[343315856,1732574756909,-317.48,0.000293,31]
[343315857,1732574756929,-330.0,0.00029306,2]
[343315858,1732574756950,-1029.24529264,0.00029341,2]
[343315859,1732574756971,-823.0,0.00029354,2]
[343315860,1732574756994,-6417.04656504,0.00029379,2]
[343315861,1732574757014,-4011.3133958,0.00029379,2]
[343315862,1732574757037,-471.98,0.00029396,10]
[343315863,1732574757059,-808.2,0.00029396,10]
[343315864,1732574757082,-151.0,0.000294,7]
[343315865,1732574757102,-151.0,0.000294,17]
[343315866,1732574757127,-6303.49431398,0.000294,7]
[343315867,1732574757148,-1251.13,0.000294,2]
[343315868,1732574757178,-6287.5595337,0.000294,7]
[343315869,1732574757203,-151.0,0.00029406,7]
[343315870,1732574757228,-151.0,0.00029406,7]
[343315871,1732574757253,-151.0,0.00029406,7]
[343315872,1732574757281,-151.0,0.00029406,7]
[343315873,1732574757306,-151.0,0.00029406,7]
[343315874,1732574757333,-151.0,0.00029406,7]
[343315875,1732574757357,-152.585381,0.00029406,7]
[343315876,1732574757380,-151.0,0.00029406,7]
[343315877,1732574757403,-295.73011,0.00029406,7]
[343315878,1732574757428,-151.0,0.00029406,7]
[343315879,1732574757453,-151.0,0.00029406,7]
[343315880,1732574757478,-151.0,0.00029406,7]
[343315881,1732574757504,-151.0,0.00029406,7]
[343315882,1732574757532,-151.0,0.00029406,7]
[343315883,1732574757558,-518.354531,0.00029406,7]
[343315884,1732574757584,-518.354531,0.00029406,7]
[343315885,1732574757610,-518.354531,0.00029406,7]
[343315886,1732574757635,-518.354531,0.00029406,7]
[343315887,1732574757661,-518.354531,0.00029406,7]
[343315888,1732574757686,-518.354531,0.00029406,7]
[343315889,1732574757710,-518.354531,0.00029406,7]
[343315890,1732574757735,-518.354531,0.00029406,7]
[343315891,1732574757762,-518.354531,0.00029406,7]
[343315892,1732574757788,-518.354531,0.00029406,7]
[343315893,1732574757812,-518.354531,0.00029406,7]
[343315894,1732574757836,-518.354531,0.00029406,7]
[343315895,1732574757863,-518.354531,0.00029406,7]
[343315896,1732574757889,-518.354531,0.00029406,7]
[343315897,1732574757912,-518.354531,0.00029406,7]
[343315898,1732574757935,-518.354531,0.00029406,7]
[343315899,1732574757959,-518.354531,0.00029406,7]
[343315900,1732574757983,-518.354531,0.00029406,7]
[343315901,1732574758008,-518.354531,0.00029406,7]
[343315902,1732574758033,-518.35453,0.00029406,7]
[343315903,1732574758055,-151.0,0.00029406,7]
[343315904,1732574758079,-151.0,0.00029406,7]
[343315905,1732574758104,-151.0,0.00029406,7]
[343315906,1732574758130,-151.0,0.00029406,7]
[343315907,1732574758153,-151.0,0.00029406,7]
[343315908,1732574758180,-151.0,0.00029406,7]
[343315909,1732574758204,-151.0,0.00029406,7]
[343315910,1732574758227,-151.0,0.00029406,7]
[343315911,1732574758250,-151.0,0.00029406,7]
[343315912,1732574758278,-151.0,0.00029406,7]
[343315913,1732574758303,-151.0,0.00029406,7]
[343315914,1732574758327,-151.0,0.00029406,7]
[343315915,1732574758350,-151.0,0.00029406,7]
[343315916,1732574758374,-151.0,0.00029406,7]
[343315917,1732574758506,-273.81793,0.00029406,7]
[343315918,1732574758532,-414.685624,0.00029406,7]
[343315919,1732574758554,-414.685624,0.00029406,7]
[343315920,1732574758580,-414.685624,0.00029406,7]
[343315921,1732574758602,-414.685624,0.00029406,7]
[343315922,1732574758624,-414.685624,0.00029406,7]
[343315923,1732574758649,-414.685624,0.00029406,7]
[343315924,1732574758671,-414.685624,0.00029406,7]
[343315925,1732574758691,-414.685624,0.00029406,7]
[343315926,1732574758713,-414.685624,0.00029406,7]
[343315927,1732574758734,-414.685624,0.00029406,7]
[343315928,1732574758754,-414.685624,0.00029406,7]
[343315929,1732574758779,-366.03827582,0.00029406,7]
[343315931,1732574790107,-369.85619984,0.00022059,2]
[343315932,1732574796548,207.35191527,0.000219,2]
[343315933,1732574830107,-130.14380016,0.00022059,2]
[343315934,1732574830128,-500.0,0.00022059,2]
[343315935,1732574830154,-458.33,0.0002206,2]
[343315936,1732574830174,-158.55774082,0.0002262,2]
[343315937,1732574830196,-527.0,0.00026615,2]
[343315938,1732574830218,-454.607,0.00026615,2]
[343315939,1732574830240,-247.195,0.00026615,2]
[343315940,1732574830260,-330.0,0.00029379,2]
[343315941,1732574830280,-1126.02,0.000294,2]
[343315942,1732574830301,-210.0,0.00029404,2]
[343315943,1732574830451,-300.0,0.00029405,2]
[343315944,1732574830475,-48.64734818,0.00029406,7]
[343315945,1732574830497,-414.685624,0.00029406,7]
[343315946,1732574830519,-414.685624,0.00029406,7]
[343315947,1732574830541,-414.685624,0.00029406,7]
[343315948,1732574830562,-414.685624,0.00029406,7]
[343315949,1732574830587,-414.685624,0.00029406,7]
[343315950,1732574830607,-414.685624,0.00029406,7]
[343315951,1732574830627,-414.685624,0.00029406,7]
[343315952,1732574830649,-414.685632,0.00029406,7]
[343315953,1732574830670,-154.497251,0.00029479,7]
[343315954,1732574830691,-1088.966326,0.00029479,7]
[343315955,1732574830712,-1088.966326,0.00029479,7]
[343315956,1732574830733,-1088.966326,0.00029479,7]
[343315957,1732574830754,-1088.966326,0.00029479,7]
[343315958,1732574830774,-1088.966326,0.00029479,7]
[343315959,1732574830795,-1088.966326,0.00029479,7]
[343315960,1732574830818,-1088.966326,0.00029479,7]
[343315961,1732574830855,-1088.966326,0.00029479,7]
[343315962,1732574830878,-1088.966326,0.00029479,7]
[343315963,1732574830900,-1088.966326,0.00029479,7]
[343315964,1732574830922,-1088.966326,0.00029479,7]
[343315965,1732574830944,-1088.966326,0.00029479,7]
[343315966,1732574830967,-1088.966326,0.00029479,7]
[343315967,1732574830988,-1088.966326,0.00029479,7]
[343315968,1732574831010,-1088.966326,0.00029479,7]
[343315969,1732574831032,-1088.966326,0.00029479,7]
[343315970,1732574831053,-1088.966326,0.00029479,7]
[343315971,1732574831077,-1088.966326,0.00029479,7]
[343315972,1732574831098,-1088.966326,0.00029479,7]
[343315973,1732574831118,-1088.966334,0.00029479,7]
[343315974,1732574831138,-212.7413024,0.00029479,30]
[343315975,1732574831164,-212.7413024,0.00029479,30]
[343315976,1732574831184,-212.7413024,0.00029479,30]
[343315977,1732574831206,-212.7413024,0.00029479,30]
[343315978,1732574831228,-212.7413024,0.00029479,30]
[343315979,1732574831249,-212.7413024,0.00029479,30]
[343315980,1732574831270,-673.5,0.00029485,10]
[343315981,1732574831292,-181.76957631,0.00029494,2]
[343315982,1732574831314,-500.0,0.00029494,2]
[343315983,1732574831337,-247.54281935,0.00029494,2]
[343315984,1732574831358,-500.0,0.00029494,2]
[343315985,1732574831380,-500.0,0.00029494,2]
[343315986,1732574831400,-219.3250048,0.00029494,2]
[343315987,1732574831421,-226.68896374,0.00029494,2]
[343315988,1732574831442,-500.0,0.00029494,2]
[343315989,1732574831464,-428.89206775,0.00029494,2]
[343315990,1732574831485,-13087.06544233,0.00029495,2]
[343315991,1732574837095,-208912.93455767,0.00029495,2]
[343315992,1732574837116,-150.0,0.000295,2]
[343315993,1732574837137,-602.18249524,0.00029521,2]
[343315994,1732574837162,-153.0,0.00029589,30]
[343315995,1732574837183,-153.0,0.00029589,30]
[343315996,1732574837202,-153.0,0.00029589,30]
[343315997,1732574837222,-153.0,0.00029589,30]
[343315998,1732574837242,-153.0,0.00029589,30]
[343315999,1732574837262,-225.09319496,0.00029594,2]
[343316000,1732574837280,-288.182,0.00029595,2]
[343316001,1732574837303,-151.0,0.00029595,7]
[343316002,1732574837325,-151.0,0.00029595,7]
[343316003,1732574837347,-151.0,0.00029595,7]
[343316004,1732574837367,-150.18,0.00029595,10]
[343316005,1732574837387,-150.18,0.00029595,10]
[343316006,1732574837406,-150.18,0.00029595,10]
[343316007,1732574837425,-299.81034311,0.00029595,10]
[343316008,1732574837446,-200.14758426,0.00029595,10]
[343316009,1732574837465,-500.0,0.00029595,10]
[343316010,1732574837484,-500.0,0.00029595,10]
[343316011,1732574837504,-332.55117409,0.00029598,2]
[343316012,1732574837523,-500.0,0.00029598,2]
[343316013,1732574837543,-392.89295765,0.00029598,2]
[343316014,1732574837563,-600.75492425,0.00029599,2]
[343316015,1732574837586,-600.75492425,0.00029599,2]
[343316016,1732574837610,-151.0,0.00029599,7]
[343316017,1732574837631,-151.0,0.00029599,7]
[343316018,1732574837652,-151.0,0.00029599,7]
[343316019,1732574837673,-151.0,0.00029599,7]
[343316020,1732574837694,-151.0,0.00029599,7]
[343316021,1732574837714,-151.0,0.00029599,7]
[343316022,1732574837734,-151.0,0.00029599,7]
[343316023,1732574837755,-151.0,0.00029599,7]
[343316024,1732574837778,-151.0,0.00029599,7]
[343316025,1732574837799,-151.0,0.00029599,7]
[343316026,1732574837822,-151.0,0.00029599,7]
[343316027,1732574837854,-151.0,0.00029599,7]
[343316028,1732574837879,-151.0,0.00029599,7]
[343316029,1732574837904,-151.0,0.00029599,7]
[343316030,1732574837929,-151.0,0.00029599,7]
[343316031,1732574837958,-151.0,0.00029599,7]
[343316032,1732574837981,-151.0,0.00029599,7]
[343316033,1732574838004,-151.0,0.00029599,7]
[343316034,1732574838026,-151.0,0.00029599,7]
[343316035,1732574838048,-151.0,0.00029599,7]
[343316036,1732574838070,-151.0,0.00029599,7]
[343316037,1732574838095,-292.586214,0.00029599,7]
[343316038,1732574838116,-290.137525,0.00029599,7]
[343316039,1732574838143,-186.0,0.000296,2]
[343316040,1732574838172,-317.48,0.000296,31]
[343316041,1732574838197,-317.48,0.000296,31]
[343316042,1732574838221,-317.48,0.000296,31]
[343316043,1732574838246,-317.48,0.000296,31]
[343316044,1732574838269,-317.48,0.000296,31]
[343316045,1732574838296,-317.48,0.000296,31]
[343316046,1732574838322,-317.48,0.000296,31]
[343316047,1732574838349,-317.48,0.000296,31]
[343316048,1732574838374,-317.48,0.000296,31]
[343316049,1732574838489,-317.48,0.000296,31]
[343316050,1732574838515,-317.48,0.000296,31]
[343316051,1732574838540,-317.48,0.000296,31]
[343316052,1732574838563,-317.48,0.000296,31]
[343316053,1732574838591,-317.48,0.000296,31]
[343316054,1732574838615,-317.48,0.000296,31]
[343316055,1732574838640,-317.48,0.000296,31]
[343316056,1732574838661,-271.075969,0.000296,2]
[343316057,1732574838682,-150.0,0.00029615,2]
[343316058,1732574838705,-151.0,0.00029759,15]
[343316059,1732574838726,-300.0,0.000298,2]
[343316060,1732574838747,-150.18,0.00029869,10]
[343316061,1732574838768,-150.18,0.00029869,10]
[343316062,1732574838793,-150.18,0.00029869,10]
[343316063,1732574838813,-500.0,0.00029869,10]
[343316064,1732574838836,-500.0,0.00029869,10]
[343316065,1732574838858,-3533.30130942,0.000299,5]
[343316066,1732574838880,-150.0,0.00029981,2]
[343316067,1732574838902,-503.0,0.0003,2]